fUST/lending_fUST_20251231
["ID","MTS","AMOUNT","RATE_DAILY","PERIOD"]
[400199741,1767192643050,-1300.41,0.00013698,2]
[400199743,1767192643060,-1300.41,0.00013698,2]
[400199745,1767192643069,-1300.41,0.00013698,2]
[400199747,1767192643078,-1300.41,0.00013698,2]
[400199749,1767192643088,-1300.41,0.00013698,2]
[400199750,1767192643097,-1300.41,0.00013698,2]
[400199752,1767192643106,-1300.41,0.00013698,2]
[400199754,1767192643116,-1300.41,0.00013698,2]
[400199756,1767192643125,-1300.41,0.00013698,2]
[400199759,1767192643134,-1300.41,0.00013698,2]
[400199761,1767192643144,-1300.41,0.00013698,2]
[400199763,1767192643155,-1300.41,0.00013698,2]
[400199765,1767192643164,-1300.41,0.00013698,2]
[400199767,1767192643173,-1300.41,0.00013698,2]
[400199768,1767192643182,-1300.41,0.00013698,2]
[400199770,1767192643193,-1300.41,0.00013698,2]
[400199772,1767192643203,-1300.41,0.00013698,2]
[400199774,1767192643213,-1300.41,0.00013698,2]
[400199776,1767192643222,-1300.47,0.00013698,2]
[400199779,1767192643233,-24498.4446576,0.00013699,2]
[400199780,1767192643244,-1203.152413,0.00013699,2]
[400199782,1767192643254,-1544.115007,0.00013699,2]
[400199784,1767192643263,-1544.115007,0.00013699,2]
[400199786,1767192643273,-1544.115007,0.00013699,2]
[400199788,1767192643282,-1544.115007,0.00013699,2]
[400199790,1767192643291,-155.015211,0.00013699,2]
[400199792,1767192643301,-151.0,0.00013699,2]
[400199794,1767192643310,-151.0,0.00013699,2]
[400199796,1767192643319,-160.15137988,0.00013699,2]
[400199798,1767192643328,-500.0,0.00013699,2]
[400199800,1767192643337,-500.0,0.00013699,2]
[400199802,1767192643346,-500.0,0.00013699,2]
[400199804,1767192643355,-500.0,0.00013699,2]
[400199806,1767192643365,-500.0,0.00013699,2]
[400199807,1767192643374,-159.68059141,0.00013699,2]
[400199808,1767192643383,-500.0,0.00013699,2]
[400199810,1767192643392,-500.0,0.00013699,2]
[400199812,1767192643401,-500.0,0.00013699,2]
[400199814,1767192643411,-500.0,0.00013699,2]
[400199816,1767192643421,-500.0,0.00013699,2]
[400199818,1767192643430,-346.46150426,0.00013699,2]
[400199819,1767192643439,-500.0,0.00013699,2]
[400199821,1767192643449,-150.0,0.00013699,2]
[400199823,1767192643458,-500.0,0.00013699,2]
[400199825,1767192643467,-500.0,0.00013699,2]
[400199827,1767192643476,-303.93264249,0.00013699,2]
[400199829,1767192643486,-500.0,0.00013699,2]
[400199831,1767192643495,-500.0,0.00013699,2]
[400199833,1767192643504,-500.0,0.00013699,2]
[400199835,1767192643514,-500.0,0.00013699,2]
[400199837,1767192643523,-500.0,0.00013699,2]
[400199839,1767192643532,-500.0,0.00013699,2]
[400199841,1767192643542,-500.0,0.00013699,2]
[400199843,1767192643551,-165.03764715,0.00013699,2]
[400199845,1767192643560,-157.55448324,0.00013699,2]
[400199846,1767192643569,-500.0,0.00013699,2]
[400199848,1767192643578,-500.0,0.00013699,2]
[400199850,1767192643587,-500.0,0.00013699,2]
[400199852,1767192643596,-500.0,0.00013699,2]
[400199854,1767192643606,-500.0,0.00013699,2]
[400199856,1767192643616,-500.0,0.00013699,2]
[400199858,1767192643626,-587.30545204,0.00013699,2]
[400199860,1767192643637,-500.0,0.00013699,2]
[400199862,1767192643647,-500.0,0.00013699,2]
[400199864,1767192643656,-500.0,0.00013699,2]
[400199866,1767192643665,-242.87306652,0.00013699,2]
[400199868,1767192643675,-188.42009972,0.00013699,2]
[400199870,1767192643684,-500.0,0.00013699,2]
[400199871,1767192643693,-500.0,0.00013699,2]
[400199873,1767192643703,-500.0,0.00013699,2]
[400199875,1767192643713,-298.53483888,0.00013699,2]
[400199877,1767192643722,-260.28159851,0.00013699,2]
[400199879,1767192643731,-500.0,0.00013699,2]
[400199881,1767192643741,-500.0,0.00013699,2]
[400199883,1767192643751,-500.0,0.00013699,2]
[400199885,1767192643760,-158.38534385,0.00013699,2]
[400199887,1767192643769,-500.0,0.00013699,2]
[400199888,1767192643779,-158.38534191,0.00013699,2]
[400199890,1767192643788,-500.0,0.00013699,2]
[400199892,1767192643797,-500.0,0.00013699,2]
[400199894,1767192643806,-500.0,0.00013699,2]
[400199896,1767192643815,-500.0,0.00013699,2]
[400199898,1767192643824,-500.0,0.00013699,2]
[400199900,1767192643833,-160.3309554,0.00013699,2]
[400199902,1767192643842,-500.0,0.00013699,2]
[400199904,1767192643852,-500.0,0.00013699,2]
[400199906,1767192643861,-500.0,0.00013699,2]
[400199908,1767192643870,-500.0,0.00013699,2]
[400199910,1767192643880,-500.0,0.00013699,2]
[400199911,1767192643889,-158.38886572,0.00013699,2]
[400199913,1767192643899,-500.0,0.00013699,2]
[400199915,1767192643908,-500.0,0.00013699,2]
[400199917,1767192643917,-237.8458189,0.00013699,2]
[400199919,1767192643926,-416.75445415,0.00013699,2]
[400199921,1767192643935,-500.0,0.00013699,2]
[400199923,1767192643945,-158.18512013,0.00013699,2]
[400199925,1767192643954,-157.18386067,0.00013699,2]
[400199927,1767192643963,-260.2481779,0.00013699,2]
[400199929,1767192643973,-158.38532202,0.00013699,2]
[400199930,1767192643982,-500.0,0.00013699,2]
[400199932,1767192643992,-500.0,0.00013699,2]
[400199934,1767192644000,-500.0,0.00013699,2]
[400199936,1767192644009,-500.0,0.00013699,2]
[400199938,1767192644019,-500.0,0.00013699,2]
[400199940,1767192644028,-500.0,0.00013699,2]
[400199942,1767192644041,-500.0,0.00013699,2]
[400199944,1767192644050,-163.65866633,0.00013699,2]
[400199946,1767192644060,-500.0,0.00013699,2]
[400199948,1767192644068,-500.0,0.00013699,2]
[400199950,1767192644078,-309.28633635,0.00013699,2]
[400199952,1767192644087,-511.92200299,0.00013699,2]
[400199953,1767192644096,-158.10807846,0.00013699,2]
[400199955,1767192644106,-500.0,0.00013699,2]
[400199957,1767192644115,-500.0,0.00013699,2]
[400199959,1767192644125,-500.57498562,0.00013699,2]
[400199961,1767192644134,-500.0,0.00013699,2]
[400199963,1767192644144,-500.0,0.00013699,2]
[400199965,1767192644156,-158.3853059,0.00013699,2]
[400199967,1767192644164,-500.0,0.00013699,2]
[400199969,1767192644174,-500.0,0.00013699,2]
[400199971,1767192644182,-500.0,0.00013699,2]
[400199973,1767192644192,-500.0,0.00013699,2]
[400199975,1767192644203,-500.0,0.00013699,2]
[400199977,1767192644212,-500.0,0.00013699,2]
[400199978,1767192644221,-500.0,0.00013699,2]
[400199980,1767192644231,-500.0,0.00013699,2]
[400199982,1767192644241,-500.0,0.00013699,2]
[400199984,1767192644250,-500.0,0.00013699,2]
[400199986,1767192644259,-500.0,0.00013699,2]
[400199988,1767192644269,-500.0,0.00013699,2]
[400199990,1767192644278,-500.0,0.00013699,2]
[400199992,1767192644287,-500.0,0.00013699,2]
[400199994,1767192644296,-500.0,0.00013699,2]
[400199996,1767192644305,-153.738398,0.00013699,2]
[400199998,1767192644314,-153.738398,0.00013699,2]
[400200000,1767192644323,-153.738398,0.00013699,2]
[400200002,1767192644332,-153.738398,0.00013699,2]
[400200003,1767192644342,-500.0,0.00013699,2]
[400200005,1767192644351,-500.0,0.00013699,2]
[400200007,1767192644361,-500.0,0.00013699,2]
[400200009,1767192644370,-500.0,0.00013699,2]
[400200011,1767192644379,-500.0,0.00013699,2]
[400200013,1767192644389,-500.0,0.00013699,2]
[400200015,1767192644398,-500.0,0.00013699,2]
[400200017,1767192644408,-500.0,0.00013699,2]
[400200019,1767192644417,-500.0,0.00013699,2]
[400200021,1767192644426,-500.0,0.00013699,2]
[400200023,1767192644436,-500.0,0.00013699,2]
[400200025,1767192644445,-500.0,0.00013699,2]
[400200027,1767192644456,-640.43328227,0.00013699,2]
[400200029,1767192644466,-500.0,0.00013699,2]
[400200031,1767192644475,-500.0,0.00013699,2]
[400200033,1767192644484,-500.0,0.00013699,2]
[400200035,1767192644495,-151.0,0.00013699,2]
[400200037,1767192644505,-151.0,0.00013699,2]
[400200039,1767192644514,-191.91713695,0.00013726,2]
[400200041,1767192644523,-210.26754593,0.00013737,2]
[400200043,1767192644533,-391.17925611,0.00013808,2]
[400200045,1767192644542,-200.0,0.0001382,2]
[400200047,1767192644551,-200.0,0.0001382,2]
[400200049,1767192644561,-1000.0,0.00013821,2]
[400200051,1767192644570,-1000.0,0.00013821,2]
[400200053,1767192644580,-1000.0,0.00013821,2]
[400200054,1767192644589,-1006.37696416,0.00013821,2]
[400200056,1767192644598,-196.20087533,0.00013821,2]
[400200057,1767192644608,-1000.0,0.00013821,2]
[400200059,1767192644617,-1000.0,0.00013821,2]
[400200060,1767192644627,-1000.0,0.00013821,2]
[400200061,1767192644636,-1000.0,0.00013821,2]
[400200062,1767192644645,-1000.0,0.00013821,2]
[400200063,1767192644655,-1000.0,0.00013821,2]
[400200064,1767192644664,-1000.0,0.00013821,2]
[400200065,1767192644673,-1000.0,0.00013821,2]
[400200066,1767192644682,-1000.0,0.00013821,2]
[400200067,1767192644692,-1000.0,0.00013821,2]
[400200068,1767192644701,-1000.0,0.00013821,2]
[400200069,1767192644710,-1000.0,0.00013821,2]
[400200070,1767192644720,-1000.0,0.00013821,2]
[400200071,1767192644729,-752.44576455,0.00013821,2]
[400200072,1767192644738,-1000.0,0.00013821,2]
[400200073,1767192644748,-1000.0,0.00013821,2]
[400200074,1767192644757,-1000.0,0.00013821,2]
[400200075,1767192644766,-1000.0,0.00013821,2]
[400200076,1767192644775,-1000.0,0.00013821,2]
[400200077,1767192644785,-1000.0,0.00013821,2]
[400200078,1767192644794,-1000.0,0.00013821,2]
[400200079,1767192644802,-1000.0,0.00013821,2]
[400200080,1767192644812,-1000.0,0.00013821,2]
[400200081,1767192644821,-1000.0,0.00013821,2]
[400200082,1767192644830,-190.31177109,0.00013821,2]
[400200083,1767192644839,-1000.0,0.00013821,2]
[400200084,1767192644848,-1000.0,0.00013821,2]
[400200085,1767192644858,-186.16786472,0.00013821,2]
[400200086,1767192644867,-1000.0,0.00013821,2]
[400200087,1767192644876,-1000.0,0.00013821,2]
[400200088,1767192644886,-1000.0,0.00013821,2]
[400200089,1767192644895,-1000.0,0.00013821,2]
[400200090,1767192644904,-1000.0,0.00013821,2]
[400200091,1767192644913,-349.6789102,0.00013821,2]
[400200092,1767192644922,-500.0,0.00013821,2]
[400200093,1767192644932,-492.98581372,0.00013944,2]
[400200094,1767192644942,-33454.72959,0.00013946,2]
[400200095,1767192644951,-574.12855637,0.00013946,2]
[400200096,1767192644960,-2773.56790519,0.00013946,2]
[400200097,1767192644970,-500.0,0.00013958,2]
[400200098,1767192645091,-500.0,0.00014095,2]
[400200099,1767192645101,-500.0,0.00014095,2]
[400200100,1767192645110,-150.0,0.00014095,2]
[400200101,1767192645120,-220.99344993,0.00014175,2]
[400200102,1767192645130,-600.0,0.00014221,2]
[400200103,1767192645139,-500.0,0.00014232,2]
[400200104,1767192645150,-500.0,0.00014232,2]
[400200105,1767192645162,-150.0,0.00014232,2]
[400200106,1767192645171,-757.28605542,0.00014237,2]
[400200107,1767192645181,-200.0,0.00014246,2]
[400200108,1767192645190,-206.34098665,0.00014246,2]
[400200109,1767192645201,-433.15519118,0.00014247,2]
[400200111,1767192645211,-1000.0,0.00014247,2]
[400200113,1767192645220,-1000.0,0.00014247,2]
[400200114,1767192645230,-1000.0,0.00014247,2]
[400200115,1767192645239,-1024.36073826,0.00014247,2]
[400200116,1767192645248,-1000.0,0.00014247,2]
[400200117,1767192645258,-1000.0,0.00014247,2]
[400200119,1767192645268,-1000.0,0.00014247,2]
[400200120,1767192645277,-1000.0,0.00014247,2]
[400200121,1767192645287,-500.48099046,0.00014247,2]
[400200122,1767192645296,-911.90264951,0.00014247,2]
[400200123,1767192645305,-150.58559665,0.00014247,2]
[400200124,1767192645314,-1000.0,0.00014247,2]
[400200125,1767192645324,-297.63479171,0.00014247,2]
[400200126,1767192645334,-1000.0,0.00014247,2]
[400200127,1767192645343,-1000.0,0.00014247,2]
[400200128,1767192645352,-500.4478313,0.00014247,2]
[400200129,1767192645361,-1000.0,0.00014247,2]
[400200130,1767192645370,-500.68443154,0.00014247,2]
[400200131,1767192645380,-1000.0,0.00014247,2]
[400200132,1767192645388,-1000.0,0.00014247,2]
[400200133,1767192645398,-1000.0,0.00014247,2]
[400200134,1767192645407,-1000.0,0.00014247,2]
[400200135,1767192645416,-1000.0,0.00014247,2]
[400200136,1767192645425,-1005.9697834,0.00014247,2]
[400200137,1767192645434,-1000.0,0.00014247,2]
[400200138,1767192645444,-1000.0,0.00014247,2]
[400200139,1767192645453,-1000.0,0.00014247,2]
[400200140,1767192645463,-609.17214565,0.00014247,2]
[400200141,1767192645472,-1000.0,0.00014247,2]
[400200143,1767192645481,-1000.0,0.00014247,2]
[400200145,1767192645491,-1000.0,0.00014247,2]
[400200147,1767192645501,-1000.0,0.00014247,2]
[400200148,1767192645510,-1000.0,0.00014247,2]
[400200149,1767192645519,-1000.0,0.00014247,2]
[400200150,1767192645528,-1000.0,0.00014247,2]
[400200151,1767192645537,-1000.0,0.00014247,2]
[400200152,1767192645546,-1000.0,0.00014247,2]
[400200153,1767192645555,-1000.0,0.00014247,2]
[400200154,1767192645564,-1000.0,0.00014247,2]
[400200155,1767192645574,-1002.43895782,0.00014247,2]
[400200156,1767192645583,-688.75934812,0.00014247,2]
[400200157,1767192645592,-1000.0,0.00014247,2]
[400200158,1767192645602,-1000.0,0.00014247,2]
[400200159,1767192645611,-495.63847364,0.00014247,2]
[400200160,1767192645621,-1000.0,0.00014247,2]
[400200161,1767192645631,-1000.0,0.00014247,2]
[400200162,1767192645641,-1000.75482131,0.00014247,2]
[400200163,1767192645650,-1000.0,0.00014247,2]
[400200164,1767192645660,-1000.0,0.00014247,2]
[400200165,1767192645669,-1000.0,0.00014247,2]
[400200166,1767192645678,-1000.0,0.00014247,2]
[400200167,1767192645688,-439.9841302,0.00014247,2]
[400200168,1767192645697,-1000.0,0.00014247,2]
[400200169,1767192645707,-251.84601956,0.00014247,2]
[400200170,1767192645716,-1000.0,0.00014247,2]
[400200171,1767192645725,-1000.0,0.00014247,2]
[400200172,1767192645734,-1000.0,0.00014247,2]
[400200173,1767192645745,-1000.0,0.00014247,2]
[400200174,1767192645755,-1000.0,0.00014247,2]
[400200175,1767192645764,-1000.0,0.00014247,2]
[400200176,1767192645774,-1000.0,0.00014247,2]
[400200177,1767192645783,-1000.0,0.00014247,2]
[400200178,1767192645793,-1000.0,0.00014247,2]
[400200179,1767192645802,-295.43360933,0.00014247,2]
[400200180,1767192645812,-1000.0,0.00014247,2]
[400200181,1767192645821,-866.45646788,0.00014247,2]
[400200182,1767192645831,-1000.0,0.00014247,2]
[400200183,1767192645840,-1000.0,0.00014247,2]
[400200184,1767192645850,-1000.0,0.00014247,2]
[400200185,1767192645859,-1000.0,0.00014247,2]
[400200186,1767192645868,-1000.0,0.00014247,2]
[400200187,1767192645877,-1000.0,0.00014247,2]
[400200188,1767192645886,-1000.0,0.00014247,2]
[400200189,1767192645895,-267.6781502,0.00014247,2]
[400200190,1767192645905,-1000.0,0.00014247,2]
[400200191,1767192645914,-1000.0,0.00014247,2]
[400200192,1767192645923,-1000.0,0.00014247,2]
[400200193,1767192645933,-1544.115007,0.00014247,2]
[400200194,1767192645942,-1544.115007,0.00014247,2]
[400200195,1767192645952,-1544.115007,0.00014247,2]
[400200196,1767192645961,-1544.115007,0.00014247,2]
[400200197,1767192645970,-10000.0,0.00014268,2]
[400200198,1767192645980,-693.33,0.00014281,2]
[400200200,1767192645989,-250.0,0.00014342,2]
[400200201,1767192646000,-151.0,0.00014368,2]
[400200202,1767192646009,-151.0,0.00014368,2]
[400200203,1767192646018,-282.65977069,0.00014368,2]
[400200204,1767192646027,-739.12450639,0.00014368,2]
[400200205,1767192646036,-465.35115233,0.00014368,2]
[400200206,1767192646045,-1500.0,0.00014368,2]
[400200207,1767192646055,-1500.0,0.00014368,2]
[400200208,1767192646064,-1500.0,0.00014368,2]
[400200209,1767192646073,-1500.0,0.00014368,2]
[400200210,1767192646082,-220.45191793,0.00014368,2]
[400200212,1767192646091,-1500.0,0.00014368,2]
[400200213,1767192646100,-1506.86265729,0.00014368,2]
[400200214,1767192646110,-1185.55855892,0.00014368,2]
[400200215,1767192646119,-1500.0,0.00014368,2]
[400200216,1767192646129,-1500.0,0.00014368,2]
[400200217,1767192646139,-1500.0,0.00014368,2]
[400200218,1767192646148,-1500.0,0.00014368,2]
[400200219,1767192646161,-1000.0,0.00014368,2]
[400200220,1767192646171,-1500.0,0.00014368,2]
[400200221,1767192646181,-1500.0,0.00014368,2]
[400200223,1767192646196,-1500.0,0.00014368,2]
[400200225,1767192646206,-1613.45090759,0.00014368,2]
[400200226,1767192646215,-1500.0,0.00014368,2]
[400200228,1767192646225,-1500.0,0.00014368,2]
[400200230,1767192646235,-1500.0,0.00014368,2]
[400200232,1767192646246,-1500.0,0.00014368,2]
[400200234,1767192646257,-924.40432946,0.00014368,2]
[400200236,1767192646267,-1500.0,0.00014368,2]
[400200238,1767192646276,-1500.0,0.00014368,2]
[400200240,1767192646285,-1500.0,0.00014368,2]
[400200242,1767192646295,-1500.0,0.00014368,2]
[400200243,1767192646304,-250.79014339,0.00014368,2]
[400200245,1767192646314,-1500.0,0.00014368,2]
[400200247,1767192646323,-1144.50771368,0.00014368,2]
[400200249,1767192646332,-1500.0,0.00014368,2]
[400200250,1767192646342,-500.0,0.00014369,2]
[400200251,1767192646352,-500.0,0.00014369,2]
[400200252,1767192646361,-224.26962583,0.00014369,2]
[400200253,1767192646371,-153.738398,0.00014369,2]
[400200254,1767192646380,-153.738398,0.00014369,2]
[400200255,1767192646389,-153.738398,0.00014369,2]
[400200256,1767192646399,-153.738398,0.00014369,2]
[400200257,1767192646408,-823.0,0.00014405,2]
[400200258,1767192646418,-34692.55458483,0.00014494,2]
[400200259,1767192646427,-595.37131296,0.00014494,2]
[400200260,1767192646437,-2876.18991768,0.00014494,2]
[400200261,1767192646447,-500.0,0.00014506,2]
[400200262,1767192646457,-461.89087781,0.00014506,2]
[400200263,1767192646466,-14716.15451875,0.00014647,2]
[400200265,1767192646475,-600.0,0.00014768,2]
[400200267,1767192646485,-1500.0,0.00014795,2]
[400200268,1767192646494,-1500.0,0.00014795,2]
[400200269,1767192646503,-1500.0,0.00014795,2]
[400200270,1767192646512,-1500.0,0.00014795,2]
[400200272,1767192646521,-1011.86637987,0.00014795,2]
[400200274,1767192646530,-1500.0,0.00014795,2]
[400200276,1767192646539,-1500.0,0.00014795,2]
[400200278,1767192646556,-1500.0,0.00014795,2]
[400200280,1767192646569,-1500.0,0.00014795,2]
[400200282,1767192646578,-1500.0,0.00014795,2]
[400200283,1767192646588,-1157.67215419,0.00014795,2]
[400200284,1767192646596,-1500.0,0.00014795,2]
[400200285,1767192646606,-1500.0,0.00014795,2]
[400200286,1767192646616,-1500.0,0.00014795,2]
[400200287,1767192646624,-1371.80562161,0.00014795,2]
[400200288,1767192646633,-1288.21762562,0.00014795,2]
[400200289,1767192646643,-1500.0,0.00014795,2]
[400200290,1767192646652,-1500.0,0.00014795,2]
[400200291,1767192646661,-1500.0,0.00014795,2]
[400200292,1767192646670,-1500.0,0.00014795,2]
[400200293,1767192646679,-1500.0,0.00014795,2]
[400200294,1767192646689,-1500.0,0.00014795,2]
[400200295,1767192646698,-1500.0,0.00014795,2]
[400200296,1767192646707,-690.10820632,0.00014795,2]
[400200297,1767192646716,-1500.0,0.00014795,2]
[400200298,1767192646725,-614.96936602,0.00014795,2]
[400200299,1767192646734,-1500.0,0.00014795,2]
[400200300,1767192646745,-1500.0,0.00014795,2]
[400200301,1767192646754,-1500.0,0.00014795,2]
[400200302,1767192646763,-1500.0,0.00014795,2]
[400200303,1767192646772,-568.53710429,0.00014795,2]
[400200304,1767192646782,-1500.0,0.00014795,2]
[400200306,1767192646792,-1500.0,0.00014795,2]
[400200307,1767192646802,-1500.0,0.00014795,2]
[400200309,1767192646811,-1500.0,0.00014795,2]
[400200311,1767192646821,-1500.0,0.00014795,2]
[400200313,1767192646831,-368.38939569,0.00014795,2]
[400200315,1767192646840,-1500.0,0.00014795,2]
[400200317,1767192646850,-1078.13053233,0.00014795,2]
[400200318,1767192646859,-1500.0,0.00014795,2]
[400200319,1767192646868,-1500.0,0.00014795,2]
[400200320,1767192646878,-1500.0,0.00014795,2]
[400200321,1767192646887,-1016.82099752,0.00014795,2]
[400200322,1767192646897,-1105.24677987,0.00014795,2]
[400200323,1767192646906,-1500.0,0.00014795,2]
[400200324,1767192646916,-1633.65989049,0.00014795,2]
[400200325,1767192646927,-1142.5109954,0.00014795,2]
[400200326,1767192646936,-1500.0,0.00014795,2]
[400200327,1767192646951,-1500.0,0.00014795,2]
[400200328,1767192646961,-1500.0,0.00014795,2]
[400200329,1767192646970,-1500.0,0.00014795,2]
[400200330,1767192646980,-1500.0,0.00014795,2]
[400200331,1767192646989,-1500.0,0.00014795,2]
[400200332,1767192646999,-1500.0,0.00014795,2]
[400200333,1767192647009,-1500.0,0.00014795,2]
[400200334,1767192647018,-1500.0,0.00014795,2]
[400200335,1767192647028,-1500.0,0.00014795,2]
[400200336,1767192647038,-1500.0,0.00014795,2]
[400200337,1767192647047,-1323.74841673,0.00014811,2]
[400200338,1767192647057,-1000.0,0.0001487,2]
[400200339,1767192647066,-100000.0,0.00014882,2]
[400200340,1767192647075,-1544.115007,0.00014882,2]
[400200341,1767192647084,-1544.115007,0.00014882,2]
[400200342,1767192647094,-1544.115007,0.00014882,2]
[400200343,1767192647104,-1544.115007,0.00014882,2]
[400200344,1767192647114,-151.0,0.00014882,2]
[400200345,1767192647123,-151.0,0.00014882,2]
[400200346,1767192647133,-153.738398,0.00014916,2]
[400200347,1767192647143,-153.738398,0.00014916,2]
[400200348,1767192647156,-153.738398,0.00014916,2]
[400200349,1767192647165,-153.738398,0.00014916,2]
[400200350,1767192647174,-1000.0,0.00014916,2]
[400200351,1767192647183,-2000.0,0.00014916,2]
[400200352,1767192647194,-2000.0,0.00014916,2]
[400200353,1767192647203,-2000.0,0.00014916,2]
[400200354,1767192647213,-2000.0,0.00014916,2]
[400200355,1767192647222,-2000.0,0.00014916,2]
[400200356,1767192647234,-2000.0,0.00014916,2]
[400200357,1767192647244,-160.96609247,0.00014916,2]
[400200358,1767192647254,-2000.0,0.00014916,2]
[400200359,1767192647263,-2000.0,0.00014916,2]
[400200360,1767192647273,-2000.0,0.00014916,2]
[400200361,1767192647283,-318.87701711,0.00014916,2]
[400200362,1767192647292,-1500.0,0.00014916,2]
[400200363,1767192647301,-2000.0,0.00014916,2]
[400200364,1767192647310,-2000.0,0.00014916,2]
[400200365,1767192647319,-2000.0,0.00014916,2]
[400200366,1767192647329,-2000.0,0.00014916,2]
[400200367,1767192647338,-1500.0,0.00014916,2]
[400200368,1767192647348,-2000.0,0.00014916,2]
[400200369,1767192647357,-1500.0,0.00014916,2]
[400200370,1767192647366,-1503.81920107,0.00014916,2]
[400200371,1767192647375,-455.57068957,0.00014954,2]
[400200372,1767192647384,-627.0,0.00015012,2]
[400200373,1767192647393,-1364.0,0.00015012,2]
[400200374,1767192647402,-2156.0,0.00015012,2]
[400200375,1767192647411,-4475.0,0.00015012,2]
[400200376,1767192647421,-28460.93866571,0.00015042,2]
[400200377,1767192647433,-617.40005154,0.00015042,2]
[400200378,1767192647442,-2982.60894464,0.00015042,2]
[400200379,1767192647452,-335.966046,0.00015068,2]
[400200380,1767192647461,-803.60344278,0.00015068,2]
[400200381,1767192647470,-345.45084651,0.00015214,2]
[400200382,1767192647480,-378.48158268,0.00015232,2]
[400200383,1767192647489,-924.44,0.00015291,2]
[400200384,1767192647510,-500.0,0.00015342,2]
[400200385,1767192647520,-509.61748521,0.00015342,2]
[400200386,1767192647529,-402.01463508,0.00015342,2]
[400200387,1767192647539,-500.0,0.00015342,2]
[400200388,1767192647548,-2000.0,0.00015342,2]
[400200389,1767192647557,-2000.0,0.00015342,2]
[400200390,1767192647567,-500.0,0.00015342,2]
[400200391,1767192647576,-500.0,0.00015342,2]
[400200392,1767192647586,-2124.39387403,0.00015342,2]
[400200393,1767192647595,-1493.29475081,0.00015342,2]
[400200394,1767192647604,-1500.0,0.00015342,2]
[400200395,1767192647614,-1500.0,0.00015342,2]
[400200396,1767192647623,-1136.69571136,0.00015342,2]
[400200397,1767192647633,-415.94669576,0.00015342,2]
[400200398,1767192647643,-1500.0,0.00015342,2]
[400200399,1767192647796,-2028.01565635,0.00015342,2]
[400200400,1767192647807,-422.85192268,0.00015342,2]
[400200401,1767192647816,-500.0,0.00015342,2]
[400200402,1767192647825,-1500.0,0.00015342,2]
[400200403,1767192647834,-1886.3706875,0.00015342,2]
[400200404,1767192647843,-464.65372712,0.00015342,2]
[400200405,1767192647853,-1000.0,0.00015342,2]
[400200406,1767192647863,-500.0,0.00015342,2]
[400200407,1767192647873,-2000.0,0.00015342,2]
[400200408,1767192647882,-1518.84773542,0.00015342,2]
[400200409,1767192647891,-1010.33134929,0.00015342,2]
[400200410,1767192647900,-1500.0,0.00015342,2]
[400200411,1767192647909,-182.49603851,0.00015342,2]
[400200412,1767192647919,-639.28203437,0.00015342,2]
[400200413,1767192647929,-1500.0,0.00015342,2]
[400200414,1767192647938,-2000.0,0.00015342,2]
[400200415,1767192647947,-1500.0,0.00015342,2]
[400200416,1767192647957,-1504.79599952,0.00015342,2]
[400200417,1767192647967,-2000.0,0.00015342,2]
[400200418,1767192647976,-1500.0,0.00015342,2]
[400200419,1767192647986,-2000.0,0.00015342,2]
[400200420,1767192647995,-2000.0,0.00015342,2]
[400200421,1767192648005,-1492.01262303,0.00015342,2]
[400200422,1767192648015,-2000.0,0.00015342,2]
[400200423,1767192648024,-1500.0,0.00015342,2]
[400200424,1767192648033,-1500.0,0.00015342,2]
[400200425,1767192648043,-2000.0,0.00015342,2]
[400200426,1767192648052,-2000.0,0.00015342,2]
[400200427,1767192648061,-757.28605542,0.00015364,2]